[Event "Early-Titled-Tuesday-Blitz-June-18-2024"]
[Site "Chess.com"]
[Date "2024.06.18"]
[Round "7"]
[White "Naruto75_3"]
[Black "LeRoidesChampions"]
[Result "1-0"]
[WhiteElo "2515"]
[BlackElo "2662"]
[TimeControl "180+1"]
[EndTime "9:18:57 PDT"]
[Termination "Naruto75_3 won by checkmate"]

1. d4 {[%clk 0:03:00.9]} 1... Nf6 {[%clk 0:02:59]} 2. c4 {[%clk 0:03:00.4]} 2...
g6 {[%clk 0:02:59.9]} 3. Nc3 {[%clk 0:02:59.3]} 3... Bg7 {[%clk 0:03:00.5]} 4.
Nf3 {[%clk 0:02:57.9]} 4... O-O {[%clk 0:03:00.8]} 5. Bg5 {[%clk 0:02:56.8]}
5... c5 {[%clk 0:02:58.8]} 6. e3 {[%clk 0:02:56.3]} 6... d6 {[%clk 0:02:58.5]}
7. Be2 {[%clk 0:02:55.1]} 7... Nc6 {[%clk 0:02:58.7]} 8. O-O {[%clk 0:02:52.7]}
8... Bf5 {[%clk 0:02:56.8]} 9. h3 {[%clk 0:02:50]} 9... Ne4 {[%clk 0:02:53.4]}
10. Nxe4 {[%clk 0:02:48.5]} 10... Bxe4 {[%clk 0:02:54.3]} 11. d5 {[%clk
0:02:47.7]} 11... Bxf3 {[%clk 0:02:45.7]} 12. Bxf3 {[%clk 0:02:44.2]} 12... Na5
{[%clk 0:02:45.8]} 13. Qc2 {[%clk 0:02:43.1]} 13... a6 {[%clk 0:02:43.9]} 14. a3
{[%clk 0:02:42.5]} 14... b5 {[%clk 0:02:43.3]} 15. cxb5 {[%clk 0:02:41.3]} 15...
axb5 {[%clk 0:02:43.1]} 16. Rad1 {[%clk 0:02:36.8]} 16... Nc4 {[%clk 0:02:42.1]}
17. Rb1 {[%clk 0:02:32.9]} 17... h6 {[%clk 0:02:33.2]} 18. Bh4 {[%clk
0:02:31.4]} 18... g5 {[%clk 0:02:32.5]} 19. Bg3 {[%clk 0:02:30]} 19... Qa5
{[%clk 0:02:33]} 20. Rfd1 {[%clk 0:02:17.6]} 20... Nb6 {[%clk 0:02:27.1]} 21.
Be2 {[%clk 0:02:12.8]} 21... b4 {[%clk 0:02:22.5]} 22. axb4 {[%clk 0:02:07]}
22... Qxb4 {[%clk 0:02:21.4]} 23. f3 {[%clk 0:02:03.4]} 23... Ra2 {[%clk
0:02:17.3]} 24. Be1 {[%clk 0:01:59.8]} 24... Qa4 {[%clk 0:01:54]} 25. Qf5 {[%clk
0:01:55.5]} 25... Re8 {[%clk 0:01:34.9]} 26. Bd3 {[%clk 0:01:48.7]} 26... Rxb2
{[%clk 0:01:33.8]} 27. Rxb2 {[%clk 0:01:45.5]} 27... Qxd1 {[%clk 0:01:32.7]} 28.
Rb1 {[%clk 0:01:43.9]} 28... Qa4 {[%clk 0:01:21.4]} 29. Bb5 {[%clk 0:01:33.9]}
29... Qa7 {[%clk 0:00:25.8]} 30. Bxe8 {[%clk 0:01:31.7]} 30... Bf6 {[%clk
0:00:26.7]} 31. Bc3 {[%clk 0:01:24.2]} 31... Bxc3 {[%clk 0:00:26.2]} 32. Bxf7+
{[%clk 0:01:19.4]} 32... Kf8 {[%clk 0:00:25]} 33. Be6+ {[%clk 0:01:14.8]} 33...
Kg7 {[%clk 0:00:22.7]} 34. Qf7+ {[%clk 0:01:13.4]} 34... Kh8 {[%clk 0:00:22.8]}
35. Qg8# {[%clk 0:01:14.3]} 1-0

[Event "Early-Titled-Tuesday-Blitz-June-18-2024"]
[Site "Chess.com"]
[Date "2024.06.18"]
[Round "7"]
[White "Muifel"]
[Black "Nicolik"]
[Result "0-1"]
[WhiteElo "2494"]
[BlackElo "2641"]
[TimeControl "180+1"]
[EndTime "9:19:00 PDT"]
[Termination "Nicolik won on time"]

1. e4 {[%clk 0:02:55.9]} 1... c5 {[%clk 0:02:59.7]} 2. d4 {[%clk 0:02:55.8]}
2... cxd4 {[%clk 0:02:58.7]} 3. c3 {[%clk 0:02:54.4]} 3... dxc3 {[%clk
0:02:58.4]} 4. Nxc3 {[%clk 0:02:54.7]} 4... Nc6 {[%clk 0:02:58.4]} 5. Bc4 {[%clk
0:02:54.3]} 5... e6 {[%clk 0:02:58.8]} 6. Nf3 {[%clk 0:02:54.1]} 6... a6 {[%clk
0:02:57.4]} 7. O-O {[%clk 0:02:53.8]} 7... Nge7 {[%clk 0:02:57.7]} 8. h4 {[%clk
0:02:51.7]} 8... Ng6 {[%clk 0:02:49.9]} 9. h5 {[%clk 0:02:50.9]} 9... Nge5
{[%clk 0:02:49.5]} 10. Nxe5 {[%clk 0:02:44.3]} 10... Nxe5 {[%clk 0:02:50.4]} 11.
Be2 {[%clk 0:02:37.1]} 11... Qh4 {[%clk 0:02:47.6]} 12. Be3 {[%clk 0:02:16.8]}
12... Bb4 {[%clk 0:02:34.1]} 13. Qd4 {[%clk 0:01:35.7]} 13... Bxc3 {[%clk
0:02:18.7]} 14. bxc3 {[%clk 0:01:04.1]} 14... Qf6 {[%clk 0:02:08.6]} 15. Qd6
{[%clk 0:00:57.2]} 15... Nc6 {[%clk 0:02:05.3]} 16. Rad1 {[%clk 0:00:24.7]}
16... Qe5 {[%clk 0:01:58]} 17. Qa3 {[%clk 0:00:20.8]} 17... Qa5 {[%clk
0:01:54.5]} 18. Qd6 {[%clk 0:00:18.2]} 18... Qe5 {[%clk 0:01:37.4]} 19. Qa3
{[%clk 0:00:16.7]} 19... b5 {[%clk 0:01:36.9]} 20. Bc5 {[%clk 0:00:12.7]} 20...
Bb7 {[%clk 0:01:22]} 21. Bf3 {[%clk 0:00:11.6]} 21... Qc7 {[%clk 0:01:14.9]} 22.
Bd6 {[%clk 0:00:10.9]} 22... Qa5 {[%clk 0:01:15]} 23. Qb3 {[%clk 0:00:09.2]}
23... Qb6 {[%clk 0:01:11.1]} 24. e5 {[%clk 0:00:07.1]} 24... Na5 {[%clk
0:01:11.2]} 25. Qc2 {[%clk 0:00:04]} 25... Bxf3 {[%clk 0:01:10]} 26. gxf3 {[%clk
0:00:04.1]} 26... Nc4 {[%clk 0:01:10.1]} 27. Qe4 {[%clk 0:00:03.7]} 27... Qc6
{[%clk 0:01:10.4]} 28. Qg4 {[%clk 0:00:02.2]} 28... Rg8 {[%clk 0:01:02.3]} 0-1

[Event "Early-Titled-Tuesday-Blitz-June-18-2024"]
[Site "Chess.com"]
[Date "2024.06.18"]
[Round "7"]
[White "WindWhistler11"]
[Black "tarno17"]
[Result "1-0"]
[WhiteElo "2527"]
[BlackElo "2175"]
[TimeControl "180+1"]
[EndTime "9:19:03 PDT"]
[Termination "WindWhistler11 won by resignation"]

1. Nf3 {[%clk 0:02:46.2]} 1... d5 {[%clk 0:02:59.1]} 2. g3 {[%clk 0:02:47.1]}
2... Nf6 {[%clk 0:02:54.3]} 3. c4 {[%clk 0:02:48]} 3... c6 {[%clk 0:02:46.2]} 4.
Bg2 {[%clk 0:02:48.2]} 4... Bg4 {[%clk 0:02:40]} 5. b3 {[%clk 0:02:48.3]} 5...
Nbd7 {[%clk 0:02:38]} 6. Bb2 {[%clk 0:02:47.8]} 6... Rc8 {[%clk 0:02:24.6]} 7.
O-O {[%clk 0:02:42.1]} 7... h5 {[%clk 0:02:11.5]} 8. h3 {[%clk 0:02:28.4]} 8...
Bxf3 {[%clk 0:02:11.3]} 9. exf3 {[%clk 0:02:28.4]} 9... e6 {[%clk 0:02:06.6]}
10. h4 {[%clk 0:02:19.8]} 10... Bd6 {[%clk 0:02:06]} 11. d3 {[%clk 0:02:13.2]}
11... Qb6 {[%clk 0:02:04]} 12. Kh2 {[%clk 0:02:06.7]} 12... Rh6 {[%clk
0:01:30.8]} 13. Nc3 {[%clk 0:01:53.4]} 13... Rg6 {[%clk 0:01:26.9]} 14. Ne2
{[%clk 0:01:48.7]} 14... Qc7 {[%clk 0:01:14.9]} 15. f4 {[%clk 0:01:45]} 15...
Ng4+ {[%clk 0:01:14.4]} 16. Kg1 {[%clk 0:01:45.7]} 16... Kf8 {[%clk 0:00:45.8]}
17. Qd2 {[%clk 0:01:34.9]} 17... Ndf6 {[%clk 0:00:32.6]} 18. Rac1 {[%clk
0:01:31.3]} 18... dxc4 {[%clk 0:00:28.9]} 19. bxc4 {[%clk 0:01:28.2]} 19... c5
{[%clk 0:00:28.1]} 20. Nc3 {[%clk 0:01:25.8]} 20... a6 {[%clk 0:00:27.1]} 21.
Ne4 {[%clk 0:01:21.1]} 21... Nxe4 {[%clk 0:00:24.4]} 22. dxe4 {[%clk 0:01:22]}
22... Rd8 {[%clk 0:00:16.8]} 23. Rcd1 {[%clk 0:01:21]} 23... Be7 {[%clk
0:00:16.2]} 24. Qe2 {[%clk 0:01:15.3]} 24... Rxd1 {[%clk 0:00:11.7]} 25. Rxd1
{[%clk 0:01:16.2]} 25... Bxh4 {[%clk 0:00:04.6]} 26. f5 {[%clk 0:01:08.5]} 26...
exf5 {[%clk 0:00:03.6]} 27. exf5 {[%clk 0:01:09.1]} 27... Be7 {[%clk 0:00:03.4]}
28. fxg6 {[%clk 0:01:06.7]} 28... fxg6 {[%clk 0:00:03]} 29. Qe6 {[%clk 0:01:00]}
1-0

[Event "Early-Titled-Tuesday-Blitz-June-18-2024"]
[Site "Chess.com"]
[Date "2024.06.18"]
[Round "7"]
[White "Adar_07"]
[Black "yaguigor"]
[Result "1-0"]
[WhiteElo "2799"]
[BlackElo "2634"]
[TimeControl "180+1"]
[EndTime "9:19:06 PDT"]
[Termination "Adar_07 won on time"]

1. e4 {[%clk 0:03:00.9]} 1... c5 {[%clk 0:02:57.8]} 2. Nf3 {[%clk 0:03:00.4]}
2... Nc6 {[%clk 0:02:55.9]} 3. d4 {[%clk 0:03:00]} 3... cxd4 {[%clk 0:02:55.9]}
4. Nxd4 {[%clk 0:03:00.9]} 4... Qb6 {[%clk 0:02:54.4]} 5. Nb3 {[%clk 0:02:59.7]}
5... Nf6 {[%clk 0:02:54.6]} 6. Nc3 {[%clk 0:02:59.4]} 6... e6 {[%clk 0:02:55]}
7. Be3 {[%clk 0:02:59.2]} 7... Qc7 {[%clk 0:02:54.4]} 8. a3 {[%clk 0:02:59.2]}
8... a6 {[%clk 0:02:52.3]} 9. Bd3 {[%clk 0:02:56.4]} 9... b5 {[%clk 0:02:51.4]}
10. f4 {[%clk 0:02:56.6]} 10... d6 {[%clk 0:02:51.2]} 11. g4 {[%clk 0:02:54.3]}
11... Bb7 {[%clk 0:02:50.4]} 12. g5 {[%clk 0:02:54.7]} 12... Nd7 {[%clk
0:02:49.9]} 13. Qf3 {[%clk 0:02:53.4]} 13... g6 {[%clk 0:02:47.6]} 14. h4 {[%clk
0:02:53]} 14... Bg7 {[%clk 0:02:31.9]} 15. h5 {[%clk 0:02:52.4]} 15... b4 {[%clk
0:02:27.6]} 16. axb4 {[%clk 0:02:50.1]} 16... Nxb4 {[%clk 0:02:26.9]} 17. hxg6
{[%clk 0:02:44.7]} 17... hxg6 {[%clk 0:02:24.2]} 18. Rxh8+ {[%clk 0:02:42.9]}
18... Bxh8 {[%clk 0:02:25.1]} 19. Kd2 {[%clk 0:02:38.4]} 19... Rc8 {[%clk
0:02:13.4]} 20. Bd4 {[%clk 0:02:35.5]} 20... e5 {[%clk 0:02:09]} 21. fxe5 {[%clk
0:02:31.6]} 21... Nxe5 {[%clk 0:01:56.1]} 22. Qh3 {[%clk 0:02:29.1]} 22... Bg7
{[%clk 0:01:42.5]} 23. Rf1 {[%clk 0:02:28.7]} 23... Nbxd3 {[%clk 0:01:25]} 24.
cxd3 {[%clk 0:02:27]} 24... Rb8 {[%clk 0:01:12.2]} 25. Qh7 {[%clk 0:02:11.3]}
25... Kf8 {[%clk 0:01:09.7]} 26. Nc1 {[%clk 0:02:02.9]} 26... Bc8 {[%clk
0:01:03]} 27. Nd5 {[%clk 0:01:59]} 27... Qa5+ {[%clk 0:00:55.2]} 28. Kc2 {[%clk
0:01:43.5]} 28... Be6 {[%clk 0:00:51.9]} 29. Nf4 {[%clk 0:01:34.8]} 29... Qa4+
{[%clk 0:00:11.8]} 30. Kb1 {[%clk 0:01:34.3]} 30... Bb3 {[%clk 0:00:03]} 31.
Nxb3 {[%clk 0:01:14.4]} 31... Qxb3 {[%clk 0:00:02]} 32. Bxe5 {[%clk 0:01:11.6]}
1-0

[Event "Early-Titled-Tuesday-Blitz-June-18-2024"]
[Site "Chess.com"]
[Date "2024.06.18"]
[Round "7"]
[White "Korona_91"]
[Black "Manukyan_Artak"]
[Result "1-0"]
[WhiteElo "2680"]
[BlackElo "2499"]
[TimeControl "180+1"]
[EndTime "9:19:07 PDT"]
[Termination "Korona_91 won by resignation"]

1. e4 {[%clk 0:02:59.1]} 1... c6 {[%clk 0:02:59.3]} 2. d4 {[%clk 0:02:58.1]}
2... d5 {[%clk 0:02:58.9]} 3. e5 {[%clk 0:02:58.5]} 3... Bf5 {[%clk 0:02:53.6]}
4. Nf3 {[%clk 0:02:57.8]} 4... e6 {[%clk 0:02:46]} 5. Be2 {[%clk 0:02:56.7]}
5... c5 {[%clk 0:02:43]} 6. Be3 {[%clk 0:02:55.9]} 6... Qb6 {[%clk 0:02:41.6]}
7. Nc3 {[%clk 0:02:53.9]} 7... Qxb2 {[%clk 0:02:40.8]} 8. Nb5 {[%clk 0:02:34.9]}
8... Na6 {[%clk 0:02:33.8]} 9. O-O {[%clk 0:02:01.3]} 9... c4 {[%clk 0:02:24.6]}
10. Nd6+ {[%clk 0:01:42.5]} 10... Bxd6 {[%clk 0:02:22.9]} 11. exd6 {[%clk
0:01:43.4]} 11... Nf6 {[%clk 0:02:10.7]} 12. Rb1 {[%clk 0:01:36.9]} 12... Qxc2
{[%clk 0:02:07.7]} 13. Rxb7 {[%clk 0:01:34.9]} 13... O-O {[%clk 0:02:01.3]} 14.
Ne5 {[%clk 0:01:14.3]} 14... Qxa2 {[%clk 0:01:41.9]} 15. Qa1 {[%clk 0:01:11.9]}
15... Qxe2 {[%clk 0:01:33.4]} 16. Qxa6 {[%clk 0:01:10.7]} 16... Ng4 {[%clk
0:01:24.1]} 17. Nxg4 {[%clk 0:01:08.8]} 17... Bxg4 {[%clk 0:01:25]} 18. Rxa7
{[%clk 0:01:00]} 18... Rxa7 {[%clk 0:01:22.9]} 19. Qxa7 {[%clk 0:01:00.9]} 19...
c3 {[%clk 0:01:21.9]} 20. Qc7 {[%clk 0:01:00]} 20... c2 {[%clk 0:01:20.6]} 21.
d7 {[%clk 0:00:59.9]} 21... h6 {[%clk 0:01:14.5]} 22. d8=Q {[%clk 0:00:58.2]}
22... Rxd8 {[%clk 0:01:13.7]} 23. Qxd8+ {[%clk 0:00:58.5]} 23... Kh7 {[%clk
0:01:14.6]} 24. Qc7 {[%clk 0:00:54.4]} 24... Qd1 {[%clk 0:01:05.9]} 25. Qc3
{[%clk 0:00:47.2]} 25... Be2 {[%clk 0:01:04.2]} 26. Re1 {[%clk 0:00:47.5]} 26...
g5 {[%clk 0:00:58.7]} 27. Qd2 {[%clk 0:00:42.2]} 27... Bh5 {[%clk 0:00:36.5]}
28. f3 {[%clk 0:00:42.1]} 28... Bxf3 {[%clk 0:00:25.5]} 29. gxf3 {[%clk
0:00:41.1]} 29... Qxf3 {[%clk 0:00:26.4]} 30. Qxc2+ {[%clk 0:00:41.2]} 1-0

[Event "Early-Titled-Tuesday-Blitz-June-18-2024"]
[Site "Chess.com"]
[Date "2024.06.18"]
[Round "7"]
[White "gabduschew"]
[Black "LileKoridze"]
[Result "1-0"]
[WhiteElo "2315"]
[BlackElo "2421"]
[TimeControl "180+1"]
[EndTime "9:19:09 PDT"]
[Termination "gabduschew won by checkmate"]

1. e4 {[%clk 0:03:00.9]} 1... c5 {[%clk 0:02:59.9]} 2. Nf3 {[%clk 0:03:00.8]}
2... d6 {[%clk 0:03:00.4]} 3. d4 {[%clk 0:03:01.2]} 3... cxd4 {[%clk 0:03:00.6]}
4. Nxd4 {[%clk 0:03:01]} 4... Nf6 {[%clk 0:03:01.1]} 5. Bd3 {[%clk 0:03:00.1]}
5... g6 {[%clk 0:02:58.1]} 6. c4 {[%clk 0:02:59.6]} 6... Bg7 {[%clk 0:02:58.2]}
7. Nc3 {[%clk 0:02:58.4]} 7... O-O {[%clk 0:02:58.4]} 8. O-O {[%clk 0:02:40]}
8... Nc6 {[%clk 0:02:58.1]} 9. Nc2 {[%clk 0:02:39.8]} 9... a5 {[%clk 0:02:57.8]}
10. Kh1 {[%clk 0:02:15.7]} 10... b6 {[%clk 0:02:53.1]} 11. Bg5 {[%clk
0:02:07.8]} 11... Bb7 {[%clk 0:02:52.1]} 12. f3 {[%clk 0:01:52.2]} 12... Rc8
{[%clk 0:02:47]} 13. Be2 {[%clk 0:01:47.2]} 13... Qc7 {[%clk 0:02:25.5]} 14. Ne3
{[%clk 0:01:44]} 14... e6 {[%clk 0:01:56.8]} 15. Nb5 {[%clk 0:01:38.2]} 15...
Qb8 {[%clk 0:01:54.2]} 16. Qxd6 {[%clk 0:01:36.7]} 16... Qa8 {[%clk 0:01:54.3]}
17. Rad1 {[%clk 0:01:28.8]} 17... Rfd8 {[%clk 0:01:49.4]} 18. Qg3 {[%clk
0:01:28.7]} 18... Rxd1 {[%clk 0:01:49.2]} 19. Rxd1 {[%clk 0:01:28.7]} 19... Nh5
{[%clk 0:01:49.7]} 20. Qe1 {[%clk 0:01:20.5]} 20... Bxb2 {[%clk 0:01:49.6]} 21.
Ng4 {[%clk 0:01:11.8]} 21... Ne5 {[%clk 0:01:31]} 22. Nh6+ {[%clk 0:01:09.5]}
22... Kg7 {[%clk 0:01:31]} 23. Qd2 {[%clk 0:01:06.7]} 23... f6 {[%clk
0:01:06.3]} 24. Qxb2 {[%clk 0:01:04.3]} 24... fxg5 {[%clk 0:01:06.6]} 25. Qxe5+
{[%clk 0:01:04.3]} 25... Kxh6 {[%clk 0:01:07]} 26. Nd6 {[%clk 0:00:47.1]} 26...
Rf8 {[%clk 0:01:01.9]} 27. g4 {[%clk 0:00:34]} 27... Nf4 {[%clk 0:00:59.3]} 28.
h4 {[%clk 0:00:34.2]} 28... gxh4 {[%clk 0:00:47.4]} 29. g5+ {[%clk 0:00:34.2]}
29... Kh5 {[%clk 0:00:47.7]} 30. Qg7 {[%clk 0:00:25]} 30... Rh8 {[%clk 0:00:38]}
31. Qh6# {[%clk 0:00:23.6]} 1-0

[Event "Early-Titled-Tuesday-Blitz-June-18-2024"]
[Site "Chess.com"]
[Date "2024.06.18"]
[Round "7"]
[White "jaramsdal"]
[Black "kingnb"]
[Result "0-1"]
[WhiteElo "2456"]
[BlackElo "2697"]
[TimeControl "180+1"]
[EndTime "9:19:13 PDT"]
[Termination "kingnb won by resignation"]

1. e4 {[%clk 0:03:00.9]} 1... c5 {[%clk 0:02:59.6]} 2. a3 {[%clk 0:03:00.4]}
2... e6 {[%clk 0:02:58.7]} 3. b4 {[%clk 0:03:00.6]} 3... cxb4 {[%clk 0:02:59.6]}
4. axb4 {[%clk 0:03:01.4]} 4... Bxb4 {[%clk 0:02:58.8]} 5. c3 {[%clk 0:03:01.8]}
5... Be7 {[%clk 0:02:54.5]} 6. d4 {[%clk 0:03:02.1]} 6... Nf6 {[%clk 0:02:55.1]}
7. Bd3 {[%clk 0:02:58.3]} 7... Nc6 {[%clk 0:02:52.8]} 8. Na3 {[%clk 0:02:46.9]}
8... d5 {[%clk 0:02:45.8]} 9. e5 {[%clk 0:02:46.4]} 9... Ne4 {[%clk 0:02:15.7]}
10. Ne2 {[%clk 0:02:46.4]} 10... f6 {[%clk 0:02:13.4]} 11. f3 {[%clk 0:02:34.8]}
11... Ng5 {[%clk 0:02:12.6]} 12. Bxg5 {[%clk 0:02:27.6]} 12... fxg5 {[%clk
0:02:13.5]} 13. Qc2 {[%clk 0:02:26.7]} 13... g6 {[%clk 0:02:10.4]} 14. O-O
{[%clk 0:01:41.8]} 14... Kf7 {[%clk 0:02:06.4]} 15. h3 {[%clk 0:01:36.3]} 15...
Kg7 {[%clk 0:02:06.1]} 16. f4 {[%clk 0:01:36.8]} 16... a6 {[%clk 0:02:05.1]} 17.
fxg5 {[%clk 0:01:32.2]} 17... Bxg5 {[%clk 0:02:06]} 18. Nb5 {[%clk 0:01:25.7]}
18... Be7 {[%clk 0:01:47.3]} 19. Nf4 {[%clk 0:01:23.3]} 19... Rf8 {[%clk
0:01:34.7]} 20. Bxg6 {[%clk 0:01:17.4]} 20... Rxf4 {[%clk 0:01:33.3]} 21. Rxf4
{[%clk 0:00:53.7]} 21... hxg6 {[%clk 0:01:32.4]} 22. Rg4 {[%clk 0:00:54]} 22...
Bg5 {[%clk 0:01:29.2]} 23. h4 {[%clk 0:00:54.1]} 23... Be3+ {[%clk 0:01:28.2]}
24. Kh2 {[%clk 0:00:51.7]} 24... Ne7 {[%clk 0:01:28.5]} 25. h5 {[%clk
0:00:40.3]} 25... g5 {[%clk 0:01:21.3]} 26. Nd6 {[%clk 0:00:20.9]} 26... Qh8
{[%clk 0:01:14]} 27. Kg3 {[%clk 0:00:14]} 27... Qxh5 {[%clk 0:01:10.4]} 28. Qd3
{[%clk 0:00:13.3]} 28... Bf4+ {[%clk 0:01:09.7]} 29. Kf3 {[%clk 0:00:13.2]}
29... Bd7 {[%clk 0:01:04.8]} 30. g3 {[%clk 0:00:13.1]} 30... Rf8 {[%clk
0:01:04.6]} 31. gxf4 {[%clk 0:00:13.1]} 31... Rxf4+ {[%clk 0:01:05.5]} 32. Ke3
{[%clk 0:00:11.8]} 32... Qxg4 {[%clk 0:01:04.3]} 33. Rh1 {[%clk 0:00:10.6]}
33... Rf3+ {[%clk 0:01:04.3]} 34. Ke2 {[%clk 0:00:10.8]} 34... Rxd3+ {[%clk
0:01:05.2]} 35. Kxd3 {[%clk 0:00:11.4]} 35... Qf3+ {[%clk 0:01:06.1]} 36. Kc2
{[%clk 0:00:11.6]} 36... Qxh1 {[%clk 0:01:07]} 0-1

[Event "Early-Titled-Tuesday-Blitz-June-18-2024"]
[Site "Chess.com"]
[Date "2024.06.18"]
[Round "7"]
[White "Tol_Tol"]
[Black "BM223344"]
[Result "0-1"]
[WhiteElo "2354"]
[BlackElo "2566"]
[TimeControl "180+1"]
[EndTime "9:19:13 PDT"]
[Termination "BM223344 won on time"]

1. d4 {[%clk 0:02:59.6]} 1... Nf6 {[%clk 0:02:59.8]} 2. c4 {[%clk 0:02:59.3]}
2... g6 {[%clk 0:02:59.1]} 3. Nc3 {[%clk 0:02:58.9]} 3... Bg7 {[%clk 0:02:59.8]}
4. e4 {[%clk 0:02:58.6]} 4... d6 {[%clk 0:03:00.4]} 5. f3 {[%clk 0:02:59.1]}
5... O-O {[%clk 0:03:00.3]} 6. Be3 {[%clk 0:02:59.7]} 6... e5 {[%clk 0:03:00.2]}
7. Nge2 {[%clk 0:02:59.3]} 7... exd4 {[%clk 0:03:00.4]} 8. Nxd4 {[%clk
0:02:58.8]} 8... c6 {[%clk 0:03:01.3]} 9. Be2 {[%clk 0:02:56.4]} 9... d5 {[%clk
0:03:01.7]} 10. cxd5 {[%clk 0:02:55.1]} 10... cxd5 {[%clk 0:03:02.2]} 11. e5
{[%clk 0:02:55.4]} 11... Nfd7 {[%clk 0:03:00.9]} 12. f4 {[%clk 0:02:55.4]} 12...
Nc6 {[%clk 0:02:54.6]} 13. O-O {[%clk 0:02:50.1]} 13... Re8 {[%clk 0:02:47]} 14.
Bf3 {[%clk 0:02:46.1]} 14... Nb6 {[%clk 0:02:47.1]} 15. b3 {[%clk 0:02:43.2]}
15... Nxd4 {[%clk 0:02:42.9]} 16. Bxd4 {[%clk 0:02:41.7]} 16... Be6 {[%clk
0:02:43.5]} 17. Nb5 {[%clk 0:02:32.5]} 17... Bf8 {[%clk 0:02:43.7]} 18. Rc1
{[%clk 0:02:29.2]} 18... Re7 {[%clk 0:02:43.5]} 19. Bc5 {[%clk 0:02:21.7]} 19...
Rd7 {[%clk 0:02:43.6]} 20. Bxf8 {[%clk 0:02:19]} 20... Qxf8 {[%clk 0:02:42.8]}
21. Nd6 {[%clk 0:02:12.1]} 21... Nc8 {[%clk 0:02:17.1]} 22. Nb5 {[%clk
0:01:43.3]} 22... Qb4 {[%clk 0:02:07.9]} 23. Nd4 {[%clk 0:01:35.4]} 23... Ne7
{[%clk 0:01:54.7]} 24. Kh1 {[%clk 0:01:27.8]} 24... Nf5 {[%clk 0:01:35.7]} 25.
Nxe6 {[%clk 0:01:17.5]} 25... fxe6 {[%clk 0:01:35.9]} 26. Bg4 {[%clk 0:01:16.7]}
26... Rf8 {[%clk 0:01:33.4]} 27. Bxf5 {[%clk 0:01:08.2]} 27... Rxf5 {[%clk
0:01:32.2]} 28. Rc8+ {[%clk 0:01:07.8]} 28... Kg7 {[%clk 0:01:32.3]} 29. Qg4
{[%clk 0:01:03.8]} 29... d4 {[%clk 0:01:20.7]} 30. Re8 {[%clk 0:00:30.5]} 30...
d3 {[%clk 0:01:03.7]} 31. Rxe6 {[%clk 0:00:23.2]} 31... d2 {[%clk 0:01:03.8]}
32. Rf6 {[%clk 0:00:16.2]} 32... Rf7 {[%clk 0:01:03.5]} 33. Rxf7+ {[%clk
0:00:10.4]} 33... Rxf7 {[%clk 0:01:02.6]} 0-1

[Event "Early-Titled-Tuesday-Blitz-June-18-2024"]
[Site "Chess.com"]
[Date "2024.06.18"]
[Round "7"]
[White "Alenzer"]
[Black "KevinGeorgeMicheal"]
[Result "0-1"]
[WhiteElo "2169"]
[BlackElo "2470"]
[TimeControl "180+1"]
[EndTime "9:19:17 PDT"]
[Termination "KevinGeorgeMicheal won by checkmate"]

1. e4 {[%clk 0:02:57.9]} 1... c6 {[%clk 0:02:57.4]} 2. Nc3 {[%clk 0:02:57.2]}
2... d5 {[%clk 0:02:55.2]} 3. Qe2 {[%clk 0:02:56.8]} 3... Nf6 {[%clk 0:02:49.1]}
4. e5 {[%clk 0:02:56.1]} 4... Nfd7 {[%clk 0:02:45.9]} 5. d4 {[%clk 0:02:54.9]}
5... e6 {[%clk 0:02:45.6]} 6. Nf3 {[%clk 0:02:40.6]} 6... c5 {[%clk 0:02:44.6]}
7. Bg5 {[%clk 0:02:34.4]} 7... Qa5 {[%clk 0:02:38.9]} 8. Qb5 {[%clk 0:02:22]}
8... Qc7 {[%clk 0:02:32.8]} 9. O-O-O {[%clk 0:01:51.7]} 9... a6 {[%clk
0:02:29.7]} 10. Qd3 {[%clk 0:01:44.6]} 10... Nc6 {[%clk 0:02:25.6]} 11. Bf4
{[%clk 0:01:23.8]} 11... b5 {[%clk 0:02:18.9]} 12. dxc5 {[%clk 0:01:15.3]} 12...
Bxc5 {[%clk 0:02:13.1]} 13. Bg3 {[%clk 0:00:42.2]} 13... Bb7 {[%clk 0:02:04.6]}
14. Be2 {[%clk 0:00:30.4]} 14... Rc8 {[%clk 0:02:00.8]} 15. Rhe1 {[%clk
0:00:29.6]} 15... Qa5 {[%clk 0:01:55.9]} 16. Kb1 {[%clk 0:00:28.5]} 16... Bb4
{[%clk 0:01:51.1]} 17. a3 {[%clk 0:00:22.8]} 17... Bxc3 {[%clk 0:01:49.2]} 18.
Qxc3 {[%clk 0:00:23.3]} 18... b4 {[%clk 0:01:42.8]} 19. Qb3 {[%clk 0:00:19]}
19... Nc5 {[%clk 0:01:41.8]} 20. axb4 {[%clk 0:00:16.2]} 20... Nxb4 {[%clk
0:01:32.7]} 21. Qa3 {[%clk 0:00:16.4]} 21... Na4 {[%clk 0:01:26]} 22. Nd4 {[%clk
0:00:16.1]} 22... Nc3+ {[%clk 0:01:21.8]} 23. Kc1 {[%clk 0:00:10.9]} 23... Nba2+
{[%clk 0:01:12.7]} 24. Kd2 {[%clk 0:00:10.9]} 24... Nb1+ {[%clk 0:01:12.9]} 25.
Ke3 {[%clk 0:00:06.3]} 25... Nxa3 {[%clk 0:01:12.9]} 26. bxa3 {[%clk 0:00:06.7]}
26... Nc3 {[%clk 0:01:11.3]} 27. Rd3 {[%clk 0:00:06.4]} 27... Nxe2 {[%clk
0:01:09.9]} 28. Rxe2 {[%clk 0:00:07.3]} 28... Rc3 {[%clk 0:01:09.9]} 29. Nb3
{[%clk 0:00:06.8]} 29... Qb6+ {[%clk 0:01:07.6]} 30. Kd2 {[%clk 0:00:06.1]}
30... Rxd3+ {[%clk 0:01:07.6]} 31. Kxd3 {[%clk 0:00:05.9]} 31... O-O {[%clk
0:01:08]} 32. Nd4 {[%clk 0:00:05.2]} 32... Rc8 {[%clk 0:01:08.1]} 33. f4 {[%clk
0:00:05.7]} 33... Rc4 {[%clk 0:01:07.9]} 34. Bf2 {[%clk 0:00:06.1]} 34... Qa5
{[%clk 0:01:08]} 35. Ke3 {[%clk 0:00:04.7]} 35... Qc3# {[%clk 0:01:07.3]} 0-1